Cogmind - Beta 17.1 @@@ ROGUE MODE // 2026.09.06 @ 01:52:37 Player: SnailSD Result: Destroyed by Y-54 Guardian with Flak Gun Performance ------------- Evolutions (4) 2000 Regions Visited (7) 1400 Robots Destroyed (53) 265 Value Destroyed (1386) 1386 Prototype IDs (7) 140 Alien Tech Used (0) 0 Bonus (500) 500 TOTAL SCORE: 5691 Bonus ------- Entered DSFs 500 Cogmind --------- Core Integrity 0/850 Matter 275/300 Energy 100/100 System Corruption 0% Temperature Cool (0) Movement Core (50) Location -6/Factory Parts ------- > --- POWER (2) -------- (None) > --- PROPULSION (4) --- (None) > --- UTILITY (4) ------ (None) > --- WEAPON (5) ------- (None) > --- INVENTORY (5) ---- Armored Leg Improved Heat Sink Hardened Heavy Armor Plating Gatling Laser Peak State ------------ > --- POWER ------------ Reinforced Deuterium Engine Light Fission Core > --- PROPULSION ------- VSS Leg Flexi-carbon Leg Armored Leg Armored Leg > --- UTILITY ---------- Large Storage Unit Active Sensor Suite > --- WEAPON ----------- Improved Medium Laser Improved Medium Laser Improved Medium Laser Pulse Rifle Pulse Rifle > --- INVENTORY -------- Nuclear Core Nuclear Core Armored Leg Armored Leg Armored Leg Improved Heat Sink Improved Heat Sink High-capacity Battery Hardened Heavy Armor Plating Hardlight Generator Particle Gun Gatling Laser Proton Missile Launcher Proton Missile Launcher [Rating: 75] Favorites ----------- Power Ion Engine Engine Ion Engine Power Core Light Fission Core Propulsion Light Treads Treads Light Treads Leg Armored Leg Utility Heat Sink Device Heat Sink Storage Large Storage Unit Protection Medium Armor Plating Weapon Improved Medium Laser Energy Gun Improved Medium Laser Ballistic Gun Light Assault Rifle Launcher Mini Grenade Launcher Special Weapon Mining Laser Build | -11 -10 -9 -9 -8 -7 -7 -6 ------- Run | Yrd Mat Mat Min Mat Fac DSF Fac Slots Evolved 8 | . . 2 . 2 2 . 2 Power 1 | . . . . . . . 1 Propulsion 2 | . . . . . 1 . 1 Utility 2 | . . . . 1 1 . . Weapon 3 | . . 2 . 1 . . . Parts Attached 56 | 6 1 5 4 23 1 13 3 Power 6 | 1 . . 2 . . 1 2 Engine 3 | 1 . . 1 . . . 1 Core 3 | . . . 1 . . 1 1 Reactor . | . . . . . . . . Propulsion 14 | 2 . 2 . 3 1 5 1 Treads 7 | 2 . . . 3 1 1 . Leg 7 | . . 2 . . . 4 1 Wheel . | . . . . . . . . Hover . | . . . . . . . . Flight . | . . . . . . . . Utility 16 | 1 . 1 1 7 . 6 . Device 9 | . . 1 1 4 . 3 . Storage 2 | 1 . . . 1 . . . Processor . | . . . . . . . . Hackware . | . . . . . . . . Protection 5 | . . . . 2 . 3 . Artifact . | . . . . . . . . Weapon 20 | 2 1 2 1 13 . 1 . Energy Gun 17 | 1 . 2 1 12 . 1 . Energy Cannon . | . . . . . . . . Ballistic Gun 1 | 1 . . . . . . . Ballistic Cannon . | . . . . . . . . Launcher 1 | . . . . 1 . . . Special Weapon 1 | . 1 . . . . . . Impact Weapon . | . . . . . . . . Slashing Weapon . | . . . . . . . . Piercing Weapon . | . . . . . . . . Special Melee Weapon . | . . . . . . . . Unidentified Prototypes 3 | . . . . 2 . 1 . Parts Lost 22 | . . 1 4 3 . 4 10 Power 2 | . . . 1 . . . 1 Propulsion 4 | . . . . . . 1 3 Utility 5 | . . . . 2 . 2 1 Weapon 11 | . . 1 3 1 . 1 5 Highest Loss Streak 9 | . . 1 2 2 . 3 9 To Critical Strikes . | . . . . . . . . Average Backups 10 | 2 6 7 7 11 13 14 11 Power 1 | . 1 1 . 1 1 1 . Propulsion 1 | 1 3 2 . 1 1 2 2 Utility 3 | . . 3 5 3 4 4 4 Weapon 3 | . 1 . 2 5 7 6 3 Tool/Special . | . . . . . . . . Unused Backups 27 | . 2 7 1 2 . 4 11 Power 4 | . . 1 . 1 . 1 1 Propulsion 9 | . 2 3 . . . 1 3 Utility 9 | . . 3 1 1 . . 4 Weapon 5 | . . . . . . 2 3 Tool/Special . | . . . . . . . . Average Slot Usage (%) 86 | . 85 93 86 95 99 90 68 Engine 7 | . 14 11 3 9 7 3 4 Core 2 | . . . 6 . . 3 4 Treads 10 | . 28 6 . 16 23 9 . Leg 11 | . . 15 22 1 . 12 20 Device 9 | . . 6 11 14 22 10 4 Storage 8 | . 14 11 11 9 7 7 5 Protection 1 | . . . . 3 . 4 . Energy Gun 30 | . 14 28 20 40 38 37 25 Ballistic Gun 3 | . 11 10 11 . . . . Peak Build Rating 75 | 6 6 12 14 27 29 65 75 Average Rating 28 | 4 5 10 12 21 28 45 58 On Entrance 19 | . 6 6 12 10 27 29 65 Avg Prop Armor Cover (%) . | . . . . . . . . Naked Turns 122 | . . . . . . . 122 Heaviest Build 61 | 13 13 17 17 48 43 54 61 Greatest Support 67 | 40 40 40 26 40 60 60 67 Greatest Overweight (x) 17 | 1 . 5 . 1 . 17 2 Average Overweight (x) . | . . . . . . . . Largest Inventory Capacity 15 | 8 8 8 8 15 15 15 15 Average Capacity 11 | 7 8 8 8 13 15 15 13 Most Carried 15 | 6 8 8 8 15 14 15 15 Average Carried 10 | 3 6 7 7 12 13 14 12 Final Capacity 15 | 8 8 8 8 15 15 15 5 Final Carried 15 | 6 7 8 7 15 13 15 5 Class Distribution -------------------- 34% | Gunner 22% | Mutant 18% | Scavenger-Skirmisher 10% | Scavenger-Gunner 7% | Skirmisher 6% | Tank Dominant Class ---------------- Mutant | -10/Materials Gunner | -9/Materials Gunner | -9/Mines Gunner | -8/Materials Scavenger-Gunner | -7/Factory Skirmisher | -7/DSF Scavenger-Skirmisher | -6/Factory Resources | -11 -10 -9 -9 -8 -7 -7 -6 ----------- Run | Yrd Mat Mat Min Mat Fac DSF Fac Matter Collected 961 | 215 74 99 42 346 . 114 71 Remotely . | . . . . . . . . Salvage Created 1800 | . 74 180 224 780 . 433 109 Parts 101 | . 5 14 13 48 . 18 3 Haulers Intercepted 5 | . . 3 . 2 . . . Recyclers Shooed 3 | . . 1 . 1 . . 1 Parts Field Recycled . | . . . . . . . . Retrieved Matter . | . . . . . . . . Parts Self-Destructed . | . . . . . . . . Prevented . | . . . . . . . . Parts Restored . | . . . . . . . . Kills | -11 -10 -9 -9 -8 -7 -7 -6 ------- Run | Yrd Mat Mat Min Mat Fac DSF Fac Combat Hostiles Destroyed 36 | . 1 1 5 17 . 8 4 Guns 28 | . 1 1 5 10 . 7 4 AOE 7 | . . . . 7 . . . Classes Destroyed 13 | . 3 1 . 6 . 2 1 Worker 5 | . 1 . . 4 . . . Builder 3 | . . . . 3 . . . Tunneler 1 | . . . . 1 . . . Hauler 5 | . . 3 . 2 . . . Recycler 1 | . . . . 1 . . . Operator 1 | . 1 . . . . . . Watcher 1 | . . . . 1 . . . Swarmer 13 | . . . . 10 . . 3 Grunt 14 | . 1 1 5 4 . 3 . Sentry 4 | . . . . 3 . 1 . Specialist 3 | . . . . . . 3 . Programmer 1 | . . . . . . . 1 Heavy 1 | . . . . . . 1 . Best Kill Streak 9 | . 2 1 3 9 . 4 3 Combat Bots Only 8 | . 1 1 3 8 . 4 3 Max Kills in Single Turn 3 | . 1 1 1 3 . 2 1 Gunslinging 1 | . . . . . . 1 . Exploded 3 | . . . . 3 . . . Melee . | . . . . . . . . Uniques/NPCs Destroyed . | . . . . . . . . Combat | -11 -10 -9 -9 -8 -7 -7 -6 -------- Run | Yrd Mat Mat Min Mat Fac DSF Fac Hostile Shots Fired 400 | . 3 7 36 75 . 78 201 Missed 141 | . . . 7 19 . 33 82 Hits 259 | . 3 7 29 56 . 45 119 Projectile 259 | . 3 7 29 56 . 45 119 Critical Strikes 7 | . . . . 2 . 3 2 Damage Taken 3720 | . 33 133 346 731 . 835 1642 Core 981 | . 10 . 12 92 . 13 854 Absorbed by Shields . | . . . . . . . . Core Remaining (%) 94 | 100 96 . 97 83 . 98 . Volleys Fired 102 | . 14 10 17 39 2 13 7 Largest 5 | . 2 4 4 5 5 5 5 Hottest 303 | . 140 140 140 294 294 294 303 Shots Fired 339 | . 22 35 46 134 10 61 31 Gun 332 | . 20 35 46 129 10 61 31 Cannon . | . . . . . . . . Launcher 5 | . . . . 5 . . . Special 2 | . 2 . . . . . . Kinetic 45 | . 7 10 17 11 . . . Thermal 242 | . 2 5 15 118 10 61 31 Explosive 5 | . . . . 5 . . . Electromagnetic 47 | . 13 20 14 . . . . Robot Hit Streak 17 | . 5 8 12 9 . 17 5 Robot Miss Streak 5 | . 4 5 2 4 . 2 3 Penetration Max . | . . . . . . . . Secondary Targets 6 | . . . 1 2 . 3 . Max Gunslinging Chain 1 | . . . 1 1 . 1 . Shots Hit Robots 192 | . 12 20 31 68 . 45 16 Core Hits 95 | . 4 7 10 48 . 18 8 Critical Kills . | . . . . . . . . Critical Parts Destroyed . | . . . . . . . . Critical Strikes 10 | . . . . 3 . 5 2 Burn 10 | . . . . 3 . 5 2 Melee Attacks . | . . . . . . . . Impact . | . . . . . . . . Slashing . | . . . . . . . . Piercing . | . . . . . . . . Sneak Attacks . | . . . . . . . . Combat Hostiles . | . . . . . . . . Follow-up Attacks . | . . . . . . . . Damage Inflicted 3877 | . 184 420 350 1794 . 813 316 Guns 2934 | . 183 269 350 1024 . 813 295 Cannons . | . . . . . . . . Explosions 894 | . . 124 . 770 . . . Melee . | . . . . . . . . Ramming 49 | . 1 27 . . . . 21 Kinetic 250 | . 29 60 92 69 . . . Thermal 2329 | . . 145 121 955 . 813 295 Explosive 770 | . . . . 770 . . . Electromagnetic 479 | . 154 188 137 . . . . Impact . | . . . . . . . . Slashing . | . . . . . . . . Piercing . | . . . . . . . . Highest Corruption 1 | . . . . . 1 1 . Average Corruption 1 | . . . . . 1 1 . Corruption Purged . | . . . . . . . . Corruption Blocked . | . . . . . . . . Effects 4 | . . . . . 1 3 . Matter Fused 2 | . . . . . 1 1 . Energy Discharges 1 | . . . . . . 1 . Data Loss (minor) 1 | . . . . . . 1 . Overload Shots . | . . . . . . . . Overflow Damage 27 | . . . . 27 . . . Projectiles . | . . . . . . . . Explosions 27 | . . . . 27 . . . Melee . | . . . . . . . . Knockbacks . | . . . . . . . . Impact . | . . . . . . . . Kinetic . | . . . . . . . . Secondary . | . . . . . . . . Self-Inflicted Damage 187 | . . 56 . 127 . . 4 Shots 5 | . . 2 . 3 . . . Rammed 5 | . 1 . . . . . 4 Targets Rammed 12 | . 1 5 . . . . 6 Kicked 7 | . . 5 . . . . 2 Crushed . | . . . . . . . . Highest Temperature 741 | . 40 127 196 385 147 416 741 Average Temperature 145 | . 22 56 99 126 77 167 275 Received Heat Transfer 1041 | . 18 42 189 207 . 183 402 Effects 25 | . . . . 1 . 3 21 Shutdowns 9 | . . . . 1 . . 8 Energy Bleed 1 | . . . . . . 1 . Interference 4 | . . . . . . 2 2 Matter Decay 2 | . . . . . . . 2 Short Circuit 1 | . . . . . . . 1 Damage (minor) 2 | . . . . . . . 2 Damage (major) 3 | . . . . . . . 3 Damage (core) 3 | . . . . . . . 3 Siege Activations . | . . . . . . . . Martial Activations . | . . . . . . . . Shielding Activations . | . . . . . . . . Robots Disrupted . | . . . . . . . . Combat Hostiles . | . . . . . . . . Robots Corrupted . | . . . . . . . . Combat Hostiles . | . . . . . . . . Parts Fried 1 | . . 1 . . . . . Impact Corruptions . | . . . . . . . . Robots Melted 1 | . . . . . . 1 . Combat Hostiles 1 | . . . . . . 1 . Parts Melted 22 | . . . . 7 . 7 8 Heat Transferred 5756 | . . 250 250 2444 . 2072 740 Parts Sabotaged . | . . . . . . . . Parts Stolen . | . . . . . . . . Parts Stripped . | . . . . . . . . Power Chain Reactions 3 | . . 3 . . . . . Alert | -11 -10 -9 -9 -8 -7 -7 -6 ------- Run | Yrd Mat Mat Min Mat Fac DSF Fac Maximum Alert Level 1 | . . . . 1 . . . Low Security (%) 82 | 100 100 100 100 37 100 100 100 Level 1 17 | . . . . 62 . . . Level 2 . | . . . . . . . . Level 3 . | . . . . . . . . Level 4 . | . . . . . . . . Level 5 . | . . . . . . . . High Security . | . . . . . . . . Max Security . | . . . . . . . . Sterilizations 1 | . . . . . . 1 . Peak Influence 286 | . 45 30 50 286 102 168 88 Initial 102 | . . 3 . . 102 28 88 Average 68 | . 11 4 9 166 69 110 20 Influence Increases 1194 | . 91 65 125 548 9 180 176 Destroy 0b10 Robot/C 720 | . 20 20 100 340 . 160 80 Destroy 0b10 Robot/NC 85 | . 10 15 . 60 . . . Destroy Leader 142 | . 10 16 10 66 . 20 20 Successful Hack 27 | . 6 5 . 7 9 . . Disable Machine 75 | . 30 . . 45 . . . Destroy Structure 40 | . . 9 . 30 . . 1 Lose Combat Pursuer 105 | . 15 . 15 . . . 75 Influence Decreases 1159 | . 81 75 125 321 195 53 309 Entered New Map 225 | . . 7 . . 125 13 80 Time Decay 802 | . 81 68 95 291 70 . 197 Lost Part 122 | . . . 30 20 . 40 32 Lost Ally 10 | . . . . 10 . . . Squads Dispatched 11 | . 1 2 . 2 . 2 4 Investigation 3 | . . 1 . 1 . . 1 Extermination 1 | . . . . . . . 1 Reinforcement 5 | . 1 1 . 1 . 2 . Assault 2 | . . . . . . . 2 Garrison . | . . . . . . . . Intercept . | . . . . . . . . Searches Triggered . | . . . . . . . . Construction Impeded 2 | . . 1 . 1 . . . Haulers Reinforced . | . . . . . . . . Active Scanning Responses . | . . . . . . . . Cargo Convoy Interrupts . | . . . . . . . . Stealth | -11 -10 -9 -9 -8 -7 -7 -6 --------- Run | Yrd Mat Mat Min Mat Fac DSF Fac Distress Signals 6 | . 1 1 . 4 . . . Communications Jammed . | . . . . . . . . Distress Signals . | . . . . . . . . Times Spotted 65 | . 8 1 6 28 . 10 12 Peak Tracking Total 6 | . 3 1 3 6 . 4 6 Tactical Retreats 4 | . 1 . 1 . . . 2 Traps | -11 -10 -9 -9 -8 -7 -7 -6 ------- Run | Yrd Mat Mat Min Mat Fac DSF Fac Traps Triggered 2 | . . . . 1 1 . . Indirectly . | . . . . . . . . Trap Hack Attempts . | . . . . . . . . Triggered . | . . . . . . . . Disarmed . | . . . . . . . . Reprogrammed . | . . . . . . . . Reused . | . . . . . . . . Traps Extracted . | . . . . . . . . Installed . | . . . . . . . . Triggered . | . . . . . . . . Machines | -11 -10 -9 -9 -8 -7 -7 -6 ---------- Run | Yrd Mat Mat Min Mat Fac DSF Fac Machines Disabled 5 | . 2 . . 3 . . . Max in Single Turn 1 | . 1 . . 1 . . . Garrison Access 1 | . . . . . . . 1 Machines Repaired . | . . . . . . . . Machines Dismantled . | . . . . . . . . Machines Sabotaged . | . . . . . . . . Overloaded Fab Kills . | . . . . . . . . Hacking | -11 -10 -9 -9 -8 -7 -7 -6 --------- Run | Yrd Mat Mat Min Mat Fac DSF Fac Machines Accessed 8 | . 1 1 . 3 2 . 1 Terminals 7 | . 1 1 . 3 2 . . Fabricators . | . . . . . . . . Repair Stations . | . . . . . . . . Recycling Units 1 | . . . . . . . 1 Scanalyzers . | . . . . . . . . Garrison Access . | . . . . . . . . Total Hacks 20 | . 3 6 . 5 2 . 4 Successful 9 | . 1 2 . 3 2 . 1 Failed 11 | . 2 4 . 2 . . 3 Catastrophic . | . . . . . . . . Database Lockouts . | . . . . . . . . Manual 13 | . 3 5 . 1 . . 4 Terminals 16 | . 3 6 . 5 2 . . Fabricators . | . . . . . . . . Repair Stations . | . . . . . . . . Recycling Units 4 | . . . . . . . 4 Scanalyzers . | . . . . . . . . Garrison Access . | . . . . . . . . Terminal Hacks 7 | . . 2 . 3 2 . . Robot Analysis 3 | . . 2 . 1 . . . Prototype ID Bank 2 | . . . . 2 . . . Open DSF 1 | . . . . . 1 . . Emergency Access Points 1 | . . . . . 1 . . Fabricator Hacks . | . . . . . . . . Repair Station Hacks . | . . . . . . . . Recycling Unit Hacks . | . . . . . . . . Scanalyzer . | . . . . . . . . Garrison Access Hacks . | . . . . . . . . Unauthorized Hacks 1 | . 1 . . . . . . Terminals 1 | . 1 . . . . . . Assimilate 1 | . 1 . . . . . . Fabricators . | . . . . . . . . Repair Stations . | . . . . . . . . Recycling Units . | . . . . . . . . Scanalyzers . | . . . . . . . . Garrison Access . | . . . . . . . . Data Cores Recovered . | . . . . . . . . Used . | . . . . . . . . Hacking Detections 4 | . 1 1 . 1 . . 1 Full Trace Events 2 | . . 1 . . . . 1 Feedback Events . | . . . . . . . . Feedback Blocked . | . . . . . . . . Robot Schematics Acquired . | . . . . . . . . Robots Built . | . . . . . . . . Authchips . | . . . . . . . . Time . | . . . . . . . . Total Robot Build Rating . | . . . . . . . . Part Schematics Acquired . | . . . . . . . . Parts Built . | . . . . . . . . Authchips . | . . . . . . . . Time . | . . . . . . . . Total Part Build Rating . | . . . . . . . . Part Studies Acquired . | . . . . . . . . Parts Repaired . | . . . . . . . . Time . | . . . . . . . . Parts Recycled . | . . . . . . . . Recycled Matter . | . . . . . . . . Retrieved Matter . | . . . . . . . . Retrieved Components . | . . . . . . . . Parts Scanalyzed . | . . . . . . . . Part Schematics Acquired . | . . . . . . . . Parts Damaged . | . . . . . . . . Bothacking | -11 -10 -9 -9 -8 -7 -7 -6 ------------ Run | Yrd Mat Mat Min Mat Fac DSF Fac Used RIF Installer . | . . . . . . . . Robots Hacked . | . . . . . . . . Non-combat . | . . . . . . . . Combat . | . . . . . . . . Robot Hacks Applied . | . . . . . . . . Relay Couplers Released 1 | . . . . . . . 1 Machine Destruction 1 | . . . . . . . 1 Fabnet Peak Effective % . | . . . . . . . . Robots Rewired . | . . . . . . . . Allies Hacked . | . . . . . . . . Hacks Repelled . | . . . . . . . . Allies | -11 -10 -9 -9 -8 -7 -7 -6 -------- Run | Yrd Mat Mat Min Mat Fac DSF Fac Total Allies 1 | . 1 . . . . . . Largest Group 1 | . 1 1 1 1 . . . Highest-Rated Group 10 | . 10 10 10 10 . . . Highest-Rated Ally 10 | . 10 10 10 10 . . . Initial Warlord ECA Mod 9 | . . . . . . . 9 Total Orders . | . . . . . . . . Ally Attacks . | . . . . . . . . Total Damage . | . . . . . . . . Kills . | . . . . . . . . Allies Corrupted . | . . . . . . . . Allies Melted . | . . . . . . . . Intel | -11 -10 -9 -9 -8 -7 -7 -6 ------- Run | Yrd Mat Mat Min Mat Fac DSF Fac Active Infowar (turns) 661 | . . . . . . 108 553 A.S.S. 661 | . . . . . . 108 553 Robot Analysis Total 3 | . . 2 . 1 . . . Derelict Logs Recovered 2 | . . . 2 . . . . Drone Launches . | . . . . . . . . Drone Recoveries . | . . . . . . . . Exploration | -11 -10 -9 -9 -8 -7 -7 -6 ------------- Run | Yrd Mat Mat Min Mat Fac DSF Fac Turns Passed 3103 | 97 233 326 406 882 157 273 729 Spaces Moved 1724 | 54 118 201 286 305 91 123 546 Core 241 | 5 . 1 . . . 1 234 Treads 639 | 49 118 55 . 288 91 38 . Legs 844 | . . 145 286 17 . 84 312 Wheels . | . . . . . . . . Hover . | . . . . . . . . Flight . | . . . . . . . . Fastest Speed 50 | 50 160 120 120 120 163 120 50 Average Speed 138 | 150 160 132 120 224 163 144 89 Slowest Speed 900 | 160 160 300 120 245 163 900 260 Overloaded Moves . | . . . . . . . . Propulsion Burnouts . | . . . . . . . . Robots Hopped . | . . . . . . . . Potential Cave-ins . | . . . . . . . . Cave-ins Triggered . | . . . . . . . . Exploration Rate (%) 35 | 4 27 21 92 28 3 87 18 Regions Visited 7 Branch Regions 1 Pre-discovered Areas . | . . . . . . . . Known Exits Taken 1 | . . . . . 1 . . Unknown Exits Taken 5 | 1 1 1 1 1 . . . Scrap Searched . | . . . . . . . . Spaces Dug . | . . . . . . . . Terrain Destroyed 50 | . . 8 . 42 . . . Melee . | . . . . . . . . Projectile . | . . . . . . . . AOE 50 | . . 8 . 42 . . . Terrain Rammed . | . . . . . . . . Walls Destroyed . | . . . . . . . . Machines Disabled . | . . . . . . . . Actions | -11 -10 -9 -9 -8 -7 -7 -6 --------- Run | Yrd Mat Mat Min Mat Fac DSF Fac Total 2231 | 67 139 241 315 421 94 188 766 Wait 222 | . . . 7 16 . 7 192 Move 1717 | 53 117 200 285 304 90 122 546 Hop . | . . . . . . . . Pick Up 46 | 6 3 10 . 10 . 14 3 Fast Attach 33 | 6 . 4 1 13 . 7 2 Attach 21 | 1 1 2 1 7 2 4 3 Detach 14 | 1 1 1 . 8 . 1 2 Swap 14 | . . . 2 10 . 2 . Drop 50 | . 2 9 2 14 . 18 5 Fire 102 | . 14 10 17 39 2 13 7 Melee . | . . . . . . . . Ram 4 | . . . . . . . 4 Kick 7 | . . 5 . . . . 2 Crush 1 | . 1 . . . . . . Escape Stasis . | . . . . . . . . Rewire . | . . . . . . . . Trap . | . . . . . . . . Miscellaneous . | . . . . . . . . Route ------- -11/Scrapyard -10/Materials -9/Materials -9/Mines -8/Materials -7/Factory -7/DSF -6/Factory History --------- Turn | Location | Event 19 | -11/Scrapyard | Discovered new exit (range 14) 98 | -11/Scrapyard | Entered Materials 287 | -10/Materials | Discovered new exit (range 8) 312 | -10/Materials | Build established: Mutant 331 | -10/Materials | Entered another Materials area 331 | -9/Materials | Accompanied by 1 ally 331 | -9/Materials | Evolved 2 slots: Weapon x2 453 | -9/Materials | Discovered new exit (range 13) 643 | -9/Materials | Build established: Gunner 657 | -9/Materials | Entered Mines 657 | -9/Mines | Accompanied by 1 ally 830 | -9/Mines | Learned 2 Materials zone layouts 945 | -9/Mines | Learned Materials garrison access intel 1050 | -9/Mines | Discovered new exit (range 10) 1063 | -9/Mines | Entered Materials 1063 | -8/Materials | Accompanied by 1 ally 1063 | -8/Materials | Evolved 2 slots: Utility x1, Weapon x1 1065 | -8/Materials | Loaded intel: 1 garrison access location 1385 | -8/Materials | Destroyed 8 combat bots 1903 | -8/Materials | Discovered new exit (range 11) 1945 | -8/Materials | Entered Factory 1945 | -7/Factory | Evolved 2 slots: Propulsion x1, Utility x1 2098 | -7/Factory | Identified exit to DSF 2102 | -7/Factory | Entered DSF 2150 | -7/DSF | Additional patrols routed to DSF 2222 | -7/DSF | Lost 3 parts (1n2u) 2267 | -7/DSF | Found Prototype Device 2267 | -7/DSF | Identified Active Sensor Suite 2288 | -7/DSF | Sterilization system engaged 2308 | -7/DSF | Ambient heat levels rising (+10) 2323 | -7/DSF | Ambient heat levels rising (+10) 2338 | -7/DSF | Ambient heat levels rising (+10) 2353 | -7/DSF | Ambient heat levels rising (+10) 2357 | -7/DSF | Discovered new exit (range 16) 2368 | -7/DSF | Ambient heat levels rising (+10) 2374 | -7/DSF | Identified exit to Factory 2375 | -7/DSF | Entered Factory 2375 | -6/Factory | Evolved 2 slots: Power x1, Propulsion x1 2694 | -6/Factory | Build established: Scavenger-Skirmisher 2912 | -6/Factory | Core integrity fell below 50% 2982 | -6/Factory | Released all parts (4) 2989 | -6/Factory | Lost 9 parts (1p3n1u4w) 2989 | -6/Factory | Core integrity fell below 20% 3104 | -6/Factory | Destroyed by Y-54 Guardian with Flak Gun Last Messages --------------- 02958_ Flexi-carbon Leg destroyed. 02971_ Kicked R-10 Processor. 02974_ ALERT: Garrison Access compromised, dispatching multiple assault carriers. 02974_ Garrison Access disabled. 02974_ Relay Coupler [Sentry] tumbles out of Garrison Access. 02979_ Critical hit (Burn: +37). 02982_ Released Particle Gun. 02982_ Released Rnf. Deuterium Engine. 02982_ Released Lrg. Storage Unit. 02982_ Released Carbon-fiber Leg. 02982_ Extracted 1 energy. 02986_ Slammed into K-01 Serf. 02988_ Destabilizing: Core damaged (-34). 03059_ Slammed into Y-54 Guardian. 03084_ Connecting with Recycling Unit... 03084_ ALERT: Suspicious activity at Recycling Unit F007. Dispatching Investigation squad. 03099_ Recycling Unit unresponsive. Map ----- +----------------------------------------------------+ | ??###????# #???# #? ""#???????????????????????? | | ?#########+##### #? #???????????????????????? | | ?# ## #?? #???????????????????????? | | ?#! ! ## #??####???????????????????????? | | ?# [ ## #############+##??????????????? | | ?# """ """ # ???????????????? | | ?# """ """ # ???????????????? | | ?# """ """ + """ """ "??????????????? | | ?# # """ """ """????????????? | | ?# """ """ # """ """ """ = ????????? | | ?# """ """ ##### ### #???????? | | ?# """ """ #???# #?# =! #???????? | | ?# #???# #?# = ???????? | | ?# ! #???# #?# ### ???????? | | ?##############???# #?# #??? ???????? | | ???################+### #???? ????????? | | ???# # R#?????? ??????????? | | ???# # #???????#####????????### | | ???# # ###################### | | ???# """"""" """""" # / | | ??????""""""" """""" # ################# #### " | | ??????""""""" """""" # #????????########+#### " | | ???# """"""" """""" + #????????# # " | | ???# # #????????# """ # " | | ????################### ###??????# """"" ] # | | ????????????????????# @ ######## """"" # " | | ????????????????????# # # " | | ????????????????????# # """ # " | | ????????????????????# Y + """"" # " | | ????????????????????# # """"" # | | ????????????????????# ! # ### | | ????????????????????# ######## """ #?? | | ????????????????????####+########### """"" #?? | | ?????????????????????# ! ## """"" #?? | | ?????????????????????#""" ## #?? | | ?????????????????????#"Y ##############?? | | ?????????????????????#""" """ """ #????????????### | | ?????????????????????# """ """ #????????????# | | ?????????????????????# """ """ #????????????# | | ?????????????????????# #????????????# | | ?????????????????????# """ """ #????????????# | | ?????????????????????# """ """ #????????????# | | ?????????????????????# """ """ #????????????# | | ?????????????????????# #????????????# | | ?????????????????????# #????????????### | | ?????????????????????##############??????????????? | | ?????????????????????????????????????????????????? | | ?????????????????????????????????????????????????? | | ?????????????????????????????????????????????????? | | ?????????????????????????????????????????????????? | +----------------------------------------------------+ Best States ------------- Heat Dissipation 68 Energy Generation 29 Energy Capacity 430 Matter Stores 300 Matter Capacity 300 Sight Range 16 Robot Scan Range 20 Terrain Scan Density 10 Armor Coverage 450 Evasion (%) 55 Recoil Reduction 3 Item Schematics ----------------- None Robot Schematics ------------------ None Fabricated ------------ Nothing Repaired ---------- Nothing Studied --------- None Alien Tech Used ----------------- None Achievements -------------- Some Acronyms Are Better Than Others Challenges ------------ None Game ------ Seed MobileAntimissileKatana Manual? 0 Play Time 00:41:12 Cumulative 78.0 hours Start 2026.09.06 @ 01:12:46 End 2026.09.06 @ 01:52:37 Sessions 1 Manual Loads 0 Difficulty Rogue Special Mode None Game No. 129 Rogue 129 Adventurer 0 Explorer 0 Win Type - Total 1 Types 1/0/0/0/0/0/0/0/0/0 Lore% 46 Gallery% 42 Achievement% 31 Wizard Run 0 Options --------- Layout 1 ASCII 1 Keyboard 1 Movement Numpad Keybinds 0 Fullscreen 2 Font 24/Smallcaps Map View 50x35 Zoom Use 0% Tactical HUD 1 Map Filters NONE Filters NONE Steam 1 RUN: 85ff1e60-23f8-4714-b2b0-44456fd50d55